Cogmind - Beta 16 @@@ ROGUE MODE // 2025.11.09 @ 18:00:01 Player: StaticNoob Result: Destroyed by D-53 Grenadier with Mini Grenade Launcher Performance ------------- Evolutions (0) 0 Regions Visited (2) 400 Robots Destroyed (23) 115 Value Destroyed (407) 407 Prototype IDs (3) 60 Alien Tech Used (0) 0 Bonus (0) 0 TOTAL SCORE: 982 Bonus ------- None Cogmind --------- Core Integrity 0/250 Matter 225/300 Energy 240/250 System Corruption 0% Temperature Cool (0) Movement Core (150) Ox2 Location -10/Mines Parts ------- > --- POWER (1) -------- Ion Engine > --- PROPULSION (2) --- (None) > --- UTILITY (2) ------ Seismic Detector > --- WEAPON (2) ------- Mini Grenade Launcher > --- INVENTORY (5) ---- High-capacity Matter Pod (200) Hacking Suite Beam Cannon Assault Rifle Heavy Assault Rifle Peak State ------------ > --- POWER ------------ Ion Engine > --- PROPULSION ------- Aluminum Leg Aluminum Leg > --- UTILITY ---------- Small Storage Unit Seismic Detector > --- WEAPON ----------- Heavy Assault Rifle Heavy Assault Rifle > --- INVENTORY -------- Light Ion Engine Seismic Detector Assault Rifle Light Assault Rifle Heavy Assault Rifle Heavy Assault Rifle Mini Grenade Launcher [Rating: 10] Favorites ----------- Power Ion Engine Engine Ion Engine Propulsion Aluminum Leg Leg Aluminum Leg Utility Seismic Detector Device Seismic Detector Storage Small Storage Unit Weapon Heavy Assault Rifle Ballistic Gun Heavy Assault Rifle Launcher Mini Grenade Launcher Build | -11 -10 -10 ------- Run | Yrd Mat Min Slots Evolved . | . . . Power . | . . . Propulsion . | . . . Utility . | . . . Weapon . | . . . Parts Attached 17 | 6 11 . Power 1 | 1 . . Engine 1 | 1 . . Core . | . . . Reactor . | . . . Propulsion 6 | 2 4 . Treads . | . . . Leg 6 | 2 4 . Wheel . | . . . Hover . | . . . Flight . | . . . Utility 4 | 1 3 . Device 2 | . 2 . Storage 2 | 1 1 . Processor . | . . . Hackware . | . . . Protection . | . . . Artifact . | . . . Weapon 6 | 2 4 . Energy Gun . | . . . Energy Cannon . | . . . Ballistic Gun 5 | 2 3 . Ballistic Cannon . | . . . Launcher 1 | . 1 . Special Weapon . | . . . Impact Weapon . | . . . Slashing Weapon . | . . . Piercing Weapon . | . . . Special Melee Weapon . | . . . Unidentified Prototypes . | . . . Parts Lost 3 | . . 3 Power . | . . . Propulsion 2 | . . 2 Utility . | . . . Weapon 1 | . . 1 Highest Loss Streak 3 | . . 3 To Critical Strikes . | . . . Average Backups 7 | . 7 10 Power . | . 1 1 Propulsion . | . . . Utility 3 | . 3 6 Weapon 3 | . 3 3 Tool/Special . | . . . Unused Backups 8 | . . 8 Power 1 | . . 1 Propulsion . | . . . Utility 6 | . . 6 Weapon 1 | . . 1 Tool/Special . | . . . Average Slot Usage (%) 98 | . 98 95 Engine 14 | . 14 14 Leg 27 | . 27 25 Device 13 | . 13 14 Storage 14 | . 14 14 Ballistic Gun 27 | . 27 21 Peak Build Rating 10 | 6 10 10 Average Rating 9 | 4 9 9 On Entrance 5 | . 6 10 Avg Prop Armor Cover (%) . | . . . Naked Turns . | . . . Heaviest Build 32 | 13 32 32 Greatest Support 20 | 20 20 20 Greatest Overweight (x) 2 | . 1 2 Average Overweight (x) . | . . 1 Largest Inventory Capacity 15 | 8 15 15 Average Capacity 9 | 7 9 15 Most Carried 11 | 1 10 11 Average Carried 7 | . 7 10 Final Capacity 15 | 8 15 5 Final Carried 10 | 1 10 5 Class Distribution -------------------- 100% | Mutant Dominant Class ---------------- Mutant | -10/Materials Mutant | -10/Mines Resources | -11 -10 -10 ----------- Run | Yrd Mat Min Matter Collected 962 | 153 797 12 Remotely . | . . . Salvage Created 652 | 57 554 41 Parts 57 | 6 51 . Haulers Intercepted 2 | . 2 . Recyclers Shooed . | . . . Parts Field Recycled . | . . . Retrieved Matter . | . . . Parts Self-Destructed . | . . . Prevented . | . . . Parts Restored . | . . . Kills | -11 -10 -10 ------- Run | Yrd Mat Min Combat Hostiles Destroyed 31 | . 13 18 Guns 10 | . 10 . AOE 21 | . 3 18 Classes Destroyed 9 | 1 7 1 Worker 2 | . 2 . Builder 1 | . 1 . Tunneler 2 | 2 . . Hauler 2 | . 2 . Operator 2 | . 2 . Watcher 1 | . 1 . Swarmer 6 | . 6 . Grunt 7 | . 7 . Assembled 18 | . . 18 Best Kill Streak 18 | 2 3 18 Combat Bots Only 18 | . 3 18 Max Kills in Single Turn 3 | 1 3 3 Gunslinging . | . . . Exploded 3 | . 3 3 Melee . | . . . Uniques/NPCs Destroyed . | . . . Combat | -11 -10 -10 -------- Run | Yrd Mat Min Hostile Shots Fired 76 | . 29 47 Missed 19 | . 7 12 Hits 57 | . 22 35 Melee 1 | . . 1 Projectile 56 | . 22 34 AOE 3 | . . 3 Damage Taken 837 | . 259 578 Core 258 | . 96 162 Absorbed by Shields . | . . . Regen/Repaired (Parts) 50 | . 50 . Core Remaining (%) 100 | 100 . . Volleys Fired 59 | 7 44 8 Largest 2 | 2 2 1 Hottest 46 | 40 46 30 Shots Fired 109 | 14 87 8 Gun 100 | 14 86 . Cannon . | . . . Launcher 9 | . 1 8 Special . | . . . Kinetic 100 | 14 86 . Thermal . | . . . Explosive 9 | . 1 8 Electromagnetic . | . . . Robot Hit Streak 6 | 2 6 3 Robot Miss Streak 3 | 2 3 3 Penetration Max . | . . . Secondary Targets . | . . . Shots Hit Robots 57 | 8 46 3 Core Hits 59 | 3 27 29 Critical Kills . | . . . Critical Parts Destroyed 1 | . 1 . Critical Strikes 1 | . 1 . Destroy 1 | . 1 . Melee Attacks . | . . . Impact . | . . . Slashing . | . . . Piercing . | . . . Sneak Attacks . | . . . Combat Hostiles . | . . . Follow-up Attacks . | . . . Damage Inflicted 2198 | 95 924 1179 Guns 848 | 95 753 . Cannons . | . . . Explosions 1335 | . 156 1179 Melee . | . . . Ramming 15 | . 15 . Kinetic 848 | 95 753 . Thermal . | . . . Explosive 1335 | . 156 1179 Electromagnetic . | . . . Impact . | . . . Slashing . | . . . Piercing . | . . . Highest Corruption . | . . . Average Corruption . | . . . Corruption Purged . | . . . Corruption Blocked . | . . . Overload Shots . | . . . Overflow Damage 88 | . . 88 Projectiles . | . . . Explosions 88 | . . 88 Melee . | . . . Knockbacks . | . . . Impact . | . . . Kinetic . | . . . Secondary . | . . . Self-Inflicted Damage . | . . . Shots . | . . . Rammed . | . . . Targets Rammed 2 | . 2 . Kicked 2 | . 2 . Crushed . | . . . Highest Temperature 4 | . 4 . Average Temperature 2 | . 2 . Received Heat Transfer 105 | . 105 . Siege Activations . | . . . Martial Activations . | . . . Shielding Activations . | . . . Robots Disrupted . | . . . Combat Hostiles . | . . . Robots Corrupted . | . . . Combat Hostiles . | . . . Parts Fried . | . . . Impact Corruptions . | . . . Robots Melted . | . . . Combat Hostiles . | . . . Parts Melted . | . . . Heat Transferred . | . . . Parts Sabotaged . | . . . Parts Stolen . | . . . Parts Stripped . | . . . Power Chain Reactions . | . . . Alert | -11 -10 -10 ------- Run | Yrd Mat Min Maximum Alert Level 1 | . 1 . Low Security (%) 96 | 100 95 100 Level 1 3 | . 4 . Level 2 . | . . . Level 3 . | . . . Level 4 . | . . . Level 5 . | . . . High Security . | . . . Max Security . | . . . Peak Influence 218 | 5 218 14 Initial 6 | . . 6 Average 77 | 1 85 3 Influence Increases 448 | 10 422 16 Destroy 0b10 Robot/C 260 | . 260 . Destroy 0b10 Robot/NC 50 | 10 40 . Destroy Leader 66 | . 66 . Successful Hack 29 | . 29 . Disable Machine 15 | . 15 . Destroy Structure 28 | . 12 16 Influence Decreases 448 | 10 405 33 Entered New Map 11 | . . 11 Time Decay 431 | 10 405 16 Lost Part 6 | . . 6 Squads Dispatched 3 | . 3 . Investigation 1 | . 1 . Extermination . | . . . Reinforcement 2 | . 2 . Assault . | . . . Garrison . | . . . Intercept . | . . . Searches Triggered . | . . . Construction Impeded . | . . . Haulers Reinforced . | . . . Active Scanning Responses . | . . . Cargo Convoy Interrupts . | . . . Stealth | -11 -10 -10 --------- Run | Yrd Mat Min Distress Signals . | . . . Communications Jammed . | . . . Distress Signals . | . . . Times Spotted 47 | . 26 21 Peak Tracking Total 19 | . 5 19 Tactical Retreats . | . . . Traps | -11 -10 -10 ------- Run | Yrd Mat Min Traps Triggered 4 | . 4 . Indirectly . | . . . Trap Hack Attempts . | . . . Triggered . | . . . Disarmed . | . . . Reprogrammed . | . . . Reused . | . . . Traps Extracted . | . . . Installed . | . . . Triggered . | . . . Machines | -11 -10 -10 ---------- Run | Yrd Mat Min Machines Disabled 1 | . 1 . Max in Single Turn 1 | . 1 . Machines Repaired . | . . . Machines Dismantled . | . . . Machines Sabotaged . | . . . Overloaded Fab Kills . | . . . Hacking | -11 -10 -10 --------- Run | Yrd Mat Min Machines Accessed 9 | . 9 . Terminals 6 | . 6 . Fabricators . | . . . Repair Stations 1 | . 1 . Recycling Units 2 | . 2 . Scanalyzers . | . . . Garrison Access . | . . . Total Hacks 25 | . 25 . Successful 16 | . 16 . Failed 9 | . 9 . Catastrophic 1 | . 1 . Database Lockouts . | . . . Manual 16 | . 16 . Terminals 19 | . 19 . Fabricators . | . . . Repair Stations 4 | . 4 . Recycling Units 2 | . 2 . Scanalyzers . | . . . Garrison Access . | . . . Terminal Hacks 6 | . 6 . Robot Analysis 4 | . 4 . Prototype ID Bank 2 | . 2 . Fabricator Hacks . | . . . Repair Station Hacks 2 | . 2 . Scan Component 1 | . 1 . Repair 1 | . 1 . Recycling Unit Hacks 2 | . 2 . Retrieve Components 2 | . 2 . Scanalyzer . | . . . Garrison Access Hacks . | . . . Unauthorized Hacks 6 | . 6 . Terminals 6 | . 6 . Botnet 1 | . 1 . Skim 5 | . 5 . Fabricators . | . . . Repair Stations . | . . . Recycling Units . | . . . Scanalyzers . | . . . Garrison Access . | . . . Data Cores Recovered 1 | . 1 . Used . | . . . Hacking Detections 7 | . 7 . Full Trace Events . | . . . Feedback Events . | . . . Feedback Blocked . | . . . Robot Schematics Acquired . | . . . Robots Built . | . . . Authchips . | . . . Time . | . . . Total Robot Build Rating . | . . . Part Schematics Acquired . | . . . Parts Built . | . . . Authchips . | . . . Time . | . . . Total Part Build Rating . | . . . Part Studies Acquired . | . . . Parts Repaired 1 | . 1 . Time 32 | . 32 . Parts Recycled . | . . . Recycled Matter . | . . . Retrieved Matter . | . . . Retrieved Components 12 | . 12 . Parts Scanalyzed . | . . . Part Schematics Acquired . | . . . Parts Damaged . | . . . Bothacking | -11 -10 -10 ------------ Run | Yrd Mat Min Used RIF Installer . | . . . Robots Hacked . | . . . Non-combat . | . . . Combat . | . . . Robot Hacks Applied . | . . . Relay Couplers Released . | . . . Fabnet Peak Effective % . | . . . Robots Rewired . | . . . Allies Hacked . | . . . Hacks Repelled . | . . . Allies | -11 -10 -10 -------- Run | Yrd Mat Min Total Allies . | . . . Largest Group . | . . . Highest-Rated Group . | . . . Highest-Rated Ally . | . . . Total Orders . | . . . Ally Attacks . | . . . Total Damage . | . . . Kills . | . . . Allies Corrupted . | . . . Allies Melted . | . . . Intel | -11 -10 -10 ------- Run | Yrd Mat Min Active Infowar (turns) 1421 | . 1369 52 Structural 1 | . 1 . Seismic 1420 | . 1368 52 Robot Analysis Total 4 | . 4 . Derelict Logs Recovered . | . . . Drone Launches . | . . . Drone Recoveries . | . . . Exploration | -11 -10 -10 ------------- Run | Yrd Mat Min Turns Passed 1563 | 91 1420 52 Spaces Moved 936 | 55 864 17 Core 5 | 5 . . Treads . | . . . Legs 931 | 50 864 17 Wheels . | . . . Hover . | . . . Flight . | . . . Fastest Speed 50 | 50 120 190 Average Speed 134 | 113 134 194 Slowest Speed 260 | 120 190 260 Overloaded Moves . | . . . Propulsion Burnouts . | . . . Robots Hopped . | . . . Potential Cave-ins . | . . . Cave-ins Triggered . | . . . Exploration Rate (%) 38 | 4 97 13 Regions Visited 2 Branch Regions 1 Pre-discovered Areas 1 | . 1 . Known Exits Taken . | . . . Unknown Exits Taken 2 | 1 1 . Scrap Searched 1 | . . 1 Spaces Dug . | . . . Terrain Destroyed 24 | . 4 20 Melee . | . . . Projectile . | . . . AOE 24 | . 4 20 Terrain Rammed . | . . . Walls Destroyed . | . . . Machines Disabled . | . . . Actions | -11 -10 -10 --------- Run | Yrd Mat Min Total 1132 | 68 1036 28 Wait 85 | . 85 . Move 934 | 54 863 17 Hop . | . . . Pick Up 13 | 1 11 1 Fast Attach 16 | 6 10 . Attach 2 | . 2 . Detach . | . . . Swap 10 | . 9 1 Drop 11 | . 10 1 Fire 59 | 7 44 8 Melee . | . . . Ram . | . . . Kick 2 | . 2 . Crush . | . . . Escape Stasis . | . . . Rewire . | . . . Trap . | . . . Miscellaneous . | . . . Route ------- -11/Scrapyard -10/Materials (discovered 5 exits: *Mat x3 / [*Min] / Sub) -10/Mines (discovered 2 exits: Mat x2) History --------- Turn | Location | Event 24 | -11/Scrapyard | Discovered new exit (range 15) 92 | -11/Scrapyard | Entered Materials 245 | -10/Materials | Discovered new exit (range 15) 305 | -10/Materials | Build established: Mutant 349 | -10/Materials | Discovered new exit (range 7) 600 | -10/Materials | Discovered new exit (range 5) 682 | -10/Materials | Repaired Hvy. Assault Rifle 910 | -10/Materials | Discovered new exit (range 16) 1170 | -10/Materials | Learned location of Storage (-7) 1287 | -10/Materials | Identified exit to Materials 1329 | -10/Materials | Learned Materials emergency access door positions 1381 | -10/Materials | Identified exit to Subcaves 1415 | -10/Materials | Learned 2 Mines zone layouts 1459 | -10/Materials | Learned 4 Materials zone layouts 1512 | -10/Materials | Entered Mines 1539 | -10/Mines | Assembled infested the area 1551 | -10/Mines | Core integrity fell below 50% 1564 | -10/Mines | Core integrity fell below 20% 1564 | -10/Mines | Destroyed by D-53 Grenadier with Mini Grenade Launcher Last Messages --------------- 01553_ as-85962 destroyed. 01553_ as-45351 destroyed. 01553_ as-73223 destroyed. 01555_ The unstable cave ceiling collapses. 01555_ as-71474 destroyed. 01555_ as-75941 destroyed. 01557_ Aluminum Leg destroyed. 01559_ Hvy. Assault Rifle destroyed. 01560_ Aluminum Leg destroyed. 01560_ as-18286 destroyed. 01560_ as-03087 destroyed. 01560_ as-82600 destroyed. 01562_ as-51287 destroyed. 01562_ as-42454 destroyed. 01562_ as-66312 destroyed. 01563_ C-45 Heavy ARC bursts open, deploying its payload. 01563_ D-53 Grenadier unfolds itself. 01563_ U-05 Engineer lays Concrete. 01564_ Dropped Lrg. Storage Unit. Map ----- +----------------------------------------------------+ | ?????????????????????????????????????????????????? | | ?????????????????????????????????????????????????? | | ?????????????????????????????????????????????????? | | ?????????????????????????????????????????????????? | | ?????????????????????????????????????????????????? | | ?????????????????????????????????????????????????? | | ?????????????????????????????????????????????????? | | ?????????????????????????????????????????????????? | | ?????????????????????????????????????????????????? | | ?????????????????????????????????????????????????? | | ????????????????????????? ??????????????????????? | | ????????????????????????? ? ???????????????????? | | ????????????????????????? # ????????????????? | | ?????????????????????????u # a ??????????????? | | ????????????????????????? #??????????????? | | ????????????????????????? % #??????????????? | | #???# ###?????# % ##?????????????? | | ##### #?????### #?????????????? | | #?????# ##????????????? | | < #######?????# ##???????????? | | #??????????## % ##??????????? | | #??????????# ?????????? | | #??????????# ????????????? | | #??????????# ## ?????????????? | | #??????????# !* ######?????????????? | | ###########?????####?# !@[ ##????#?????????????? | | ####???????????## #### !! #??????????????????? | | #???????##### # #??????????????????? | | #???????# % dd ##??????????????????? | | #???????# ! u ######??????????????? | | #???????# ## ### ##?????????????? | | #???????# ## k ##?## #?????????????? | | #???????# ### ##???## #????????????? | | < ######### #?####?????# #????????????? | | #??????????## ## ##????????????? | | ###########???????????##### #?????????????? | | #?????????????????????????# #?????????????? | | #?????????????????????????## ##?????????????? | | ####??????????????????????????#####??????????????? | | ?????????????????????????????????????????????????? | | ?????????????????????????????????????????????????? | | | | | | | | | | | | | | | | | | | +----------------------------------------------------+ Best States ------------- Heat Dissipation 25 Energy Generation 10 Energy Capacity 250 Matter Stores 300 Matter Capacity 300 Sight Range 16 Terrain Scan Density 10 Evasion (%) 55 Item Schematics ----------------- None Robot Schematics ------------------ None Fabricated ------------ Nothing Repaired ---------- Hvy. Assault Rifle | 56% | -10/Materials Studied --------- None Alien Tech Used ----------------- None Achievements -------------- None Challenges ------------ None Game ------ Seed ConstructMakeshiftSaw Manual? 0 Play Time 00:10:27 Cumulative 243.8 hours Start 2025.11.09 @ 17:50:19 End 2025.11.09 @ 18:00:01 Sessions 1 Manual Loads 0 Difficulty Rogue Special Mode None Game No. 193 Rogue 193 Adventurer 0 Explorer 0 Win Type - Total 7 Types 5/0/1/1/0/0/0/0/0/0 Lore% 82 Gallery% 72 Achievement% 51 Wizard Run 0 Options --------- Layout 1 ASCII 0 Keyboard 0 Movement Numpad Keybinds 0 Fullscreen 1 Font 24/Smallcaps Map View 50x35 Zoom Use 0% Tactical HUD 1 Map Filters NONE Filters NONE Steam 1 RUN: 25d1f704-c965-44ef-9441-de036cb2b9e9